bitfinex/quotes_BTCUSD_20250508
["timestamp","ask_amount","ask_price","bid_price","bid_amount"]
[1746736363439,0.002,101810.0,101800.0,1.44616595]
[1746736363843,0.01182144,101810.0,101800.0,1.09251341]
[1746736364124,0.03096481,101810.0,101800.0,1.09249208]
[1746736364347,0.01132144,101810.0,101800.0,1.45239159]
[1746736364548,0.02114307,101810.0,101800.0,1.45239159]
[1746736364746,0.01132144,101810.0,101800.0,1.10331458]
[1746736364943,0.01132144,101810.0,101800.0,1.45239159]
[1746736365248,0.01132144,101810.0,101800.0,1.09349208]
[1746736365406,0.01132134,101810.0,101800.0,1.45239159]
[1746736366014,0.03096451,101810.0,101800.0,1.10331458]
[1746736366263,0.03634278,101810.0,101800.0,1.10331458]
[1746736366436,0.04616441,101810.0,101800.0,1.10331477]
[1746736366642,0.04616451,101810.0,101800.0,1.10331477]
[1746736366846,0.04616451,101810.0,101800.0,1.09349227]
[1746736367045,0.0015,101810.0,101800.0,1.45239178]
[1746736367256,0.0015,101810.0,101800.0,1.48369178]
[1746736367656,0.0015,101810.0,101800.0,1.13461477]
[1746736367852,0.0015,101810.0,101800.0,1.89999178]
[1746736368056,0.02946211,101820.0,101810.0,0.22590984]
[1746736368262,0.02946231,101820.0,101810.0,0.66583223]
[1746736368466,0.03928346,101820.0,101810.0,0.30693339]
[1746736368622,0.02946231,101820.0,101810.0,0.31675531]
[1746736368983,0.02946231,101820.0,101810.0,0.71675531]
[1746736369187,0.24806737,101820.0,101810.0,0.50066692]
[1746736370388,0.24806737,101820.0,101800.0,1.05698311]
[1746736370389,0.23866637,101810.0,101800.0,0.81598055]
[1746736370705,0.24848829,101810.0,101800.0,0.05968055]
[1746736371292,0.5975653,101810.0,101800.0,0.05968055]
[1746736371717,0.23868673,101800.0,101790.0,0.45968055]
[1746736372337,0.23868673,101800.0,101790.0,0.05968055]
[1746736373468,0.22986365,101800.0,101780.0,1.06720456]
[1746736373635,0.206307,101790.0,101780.0,1.47326836]
[1746736373815,0.206307,101790.0,101780.0,1.04714325]
[1746736373998,0.237807,101790.0,101780.0,0.85064249]
[1746736374205,0.237807,101790.0,101780.0,0.00247186]
[1746736374554,0.237807,101790.0,101780.0,0.00347186]
[1746736374968,0.237807,101790.0,101780.0,0.00447186]
[1746736375907,0.237807,101790.0,101780.0,0.00347186]
[1746736376544,0.240807,101790.0,101780.0,0.00347186]
[1746736376744,0.240807,101790.0,101780.0,0.00247186]
[1746736377292,0.242807,101790.0,101780.0,0.00247186]
[1746736377708,0.25734785,101790.0,101780.0,0.00247186]
[1746736379945,0.60642486,101790.0,101780.0,0.00247186]
[1746736380245,0.25734785,101790.0,101780.0,0.00247186]
[1746736382552,0.60642486,101790.0,101780.0,0.00247186]
[1746736382905,0.25734785,101790.0,101780.0,0.00247186]
[1746736384211,0.242807,101790.0,101780.0,0.00247186]
[1746736384362,0.242807,101790.0,101780.0,0.30946614]
[1746736384363,0.211307,101790.0,101780.0,0.30946614]
[1746736384562,0.211307,101790.0,101780.0,0.29964103]
[1746736384763,0.211307,101790.0,101780.0,0.30946614]
[1746736384968,0.02464781,101790.0,101780.0,0.67819288]
[1746736385220,0.02464781,101790.0,101780.0,0.33894069]
[1746736385384,0.02464781,101790.0,101780.0,0.35494088]
[1746736385587,0.02464781,101790.0,101780.0,0.34511606]
[1746736385955,0.22113076,101790.0,101780.0,0.33529115]
[1746736386168,0.02464723,101790.0,101780.0,0.34598198]
[1746736386378,0.03447118,101790.0,101780.0,0.7214837]
[1746736386790,0.04429532,101790.0,101780.0,0.7214837]
[1746736387000,0.04429532,101790.0,101780.0,0.33980669]
[1746736387204,0.04429532,101790.0,101780.0,1.0888838]
[1746736387365,0.04429532,101790.0,101780.0,1.09870852]
[1746736387573,0.04429532,101790.0,101780.0,0.73980679]
[1746736388109,0.24077827,101790.0,101780.0,0.70050694]
[1746736388256,0.22113104,101790.0,101780.0,0.70050693]
[1746736388451,0.22113104,101790.0,101780.0,0.72015705]
[1746736388701,0.22113104,101790.0,101780.0,0.50400468]
[1746736388941,0.22650709,101790.0,101780.0,0.50400468]
[1746736389106,0.002,101830.0,101820.0,0.21606707]
[1746736389317,0.002,101830.0,101820.0,0.69873055]
[1746736389528,0.002,101830.0,101820.0,1.04780756]
[1746736389693,0.002,101830.0,101820.0,0.70855142]
[1746736390089,0.011,101830.0,101820.0,0.71937199]
[1746736390295,0.011,101830.0,101820.0,0.71984385]
[1746736390762,0.012,101830.0,101820.0,0.71984385]
[1746736390975,0.012,101830.0,101820.0,0.31578397]
[1746736391175,0.012,101830.0,101820.0,0.69432348]
[1746736391494,0.012,101830.0,101820.0,1.42392106]
[1746736391667,0.012,101830.0,101820.0,1.45574274]
[1746736391894,0.012,101830.0,101820.0,1.22617935]
[1746736392098,0.003,101830.0,101820.0,1.62517935]
[1746736393442,0.003,101830.0,101820.0,1.59335767]
[1746736393643,0.003,101830.0,101820.0,1.62517935]
[1746736394172,0.003,101830.0,101820.0,1.59335767]
[1746736394793,0.003,101830.0,101820.0,2.00965767]
[1746736396504,0.003,101830.0,101820.0,1.49196282]
[1746736396693,0.02263903,101830.0,101820.0,1.47108388]
[1746736396957,0.03245883,101830.0,101820.0,1.48090474]
[1746736397088,0.02263931,101830.0,101820.0,1.49072541]
[1746736397300,0.02263922,101830.0,101820.0,1.49072541]
[1746736397615,0.21604566,101830.0,101820.0,1.12126282]
[1746736397794,0.21604566,101830.0,101820.0,0.52483776]
[1746736397795,0.23164566,101830.0,101820.0,0.52483776]
[1746736397996,0.23802586,101830.0,101820.0,0.52483776]
[1746736398197,0.21604614,101830.0,101820.0,0.72126282]
[1746736398389,0.21604614,101830.0,101820.0,1.12126282]
[1746736399246,0.21604614,101830.0,101820.0,0.92483776]
[1746736399441,0.24784614,101830.0,101820.0,0.41677186]
[1746736400728,0.24784614,101830.0,101820.0,0.00047186]
[1746736401381,0.26238699,101830.0,101820.0,0.00047186]
[1746736403933,1.17164454,101830.0,101820.0,0.00047186]
[1746736404181,1.52536454,101830.0,101820.0,0.00047186]
[1746736404566,1.63536454,101830.0,101820.0,0.00047186]
[1746736404775,1.74140454,101830.0,101820.0,0.00047186]
[1746736405028,0.26222895,101810.0,101800.0,0.0028657]
[1746736405258,0.36289587,101810.0,101800.0,0.00333773]
[1746736406188,1.1734865,101810.0,101800.0,0.00333773]
[1746736406394,1.1744865,101810.0,101800.0,0.00333773]
[1746736407012,0.70589587,101810.0,101800.0,0.00333773]
[1746736411808,1.05351182,101810.0,101800.0,0.00333773]
[1746736412302,1.15417874,101810.0,101800.0,0.00333773]
[1746736412979,1.05351182,101810.0,101800.0,0.00333773]
[1746736414884,0.70589587,101810.0,101800.0,0.00333773]
[1746736415030,0.60522895,101810.0,101800.0,0.00333773]
[1746736417635,0.9528449,101810.0,101800.0,0.00333773]
[1746736417835,1.05351182,101810.0,101800.0,0.00333773]
[1746736419121,1.40731182,101810.0,101800.0,0.00333773]
[1746736419339,0.003,101810.0,101800.0,0.8233206]
[1746736419540,0.003,101810.0,101800.0,1.12779564]
[1746736419743,0.003,101810.0,101800.0,1.12779563]
[1746736419945,0.003,101810.0,101800.0,1.15071131]
[1746736420145,0.001,101810.0,101800.0,1.17035727]
[1746736420308,0.001,101810.0,101800.0,1.18018006]
[1746736420514,0.001,101810.0,101800.0,1.19400275]
[1746736420759,0.03928326,101820.0,101810.0,0.19644435]
[1746736420760,0.03928317,101820.0,101810.0,0.19644435]
[1746736420932,0.02946211,101820.0,101810.0,0.19731001]
[1746736421139,0.03928307,101820.0,101810.0,0.19731001]
[1746736421562,0.03928307,101820.0,101810.0,0.59731001]
[1746736422446,0.04028307,101820.0,101810.0,0.59731001]
[1746736422648,0.04028307,101820.0,101810.0,0.59731]
[1746736423084,0.04228307,101820.0,101810.0,0.59731]
[1746736423491,0.05210422,101820.0,101810.0,0.59731]
[1746736423901,0.23870928,101820.0,101810.0,0.00086565]
[1746736424148,0.21906746,101820.0,101810.0,0.00086565]
[1746736424337,0.01964317,101810.0,101800.0,0.1478051]
[1746736424534,0.029465,101810.0,101800.0,0.5478051]
[1746736424877,0.00982154,101810.0,101800.0,0.55762828]
[1746736425049,0.029465,101810.0,101800.0,0.55849393]
[1746736425270,0.01964317,101810.0,101800.0,0.54867075]
[1746736425427,0.0294649,101810.0,101800.0,0.54867075]
[1746736425632,0.2160881,101810.0,101800.0,0.00086565]
[1746736425999,0.20626637,101810.0,101800.0,0.00086565]
[1746736426206,0.03929078,101800.0,101790.0,0.96339354]
[1746736426407,0.0392903,101800.0,101790.0,0.99009005]
[1746736427047,0.0392903,101800.0,101790.0,0.99207471]
[1746736427510,0.20822882,101830.0,101810.0,0.22186647]
[1746736427714,0.002,101830.0,101820.0,0.19642506]
[1746736427913,0.03145989,101830.0,101820.0,0.19642506]
[1746736428191,0.23768517,101830.0,101820.0,0.19642506]
[1746736428366,0.22786566,101830.0,101820.0,0.19642506]
[1746736428534,0.22786566,101830.0,101820.0,0.21162506]
[1746736428744,0.0236397,101830.0,101820.0,0.21162506]
[1746736428933,0.03345979,101830.0,101820.0,0.21162506]
[1746736429310,0.03245979,101830.0,101820.0,0.23664631]
[1746736429506,0.02263931,101830.0,101820.0,0.23664631]
[1746736429707,0.02263931,101830.0,101820.0,0.22682506]
[1746736429708,0.03245921,101830.0,101820.0,0.22682506]
[1746736429910,0.03245921,101830.0,101820.0,0.23664621]
[1746736430116,0.03245921,101830.0,101820.0,0.23664631]
[1746736430323,0.03445921,101830.0,101820.0,0.22682506]
[1746736430546,0.02463931,101830.0,101820.0,0.23664621]
[1746736430757,0.0344593,101830.0,101820.0,0.23664631]
[1746736431174,0.02463922,101830.0,101820.0,0.24646717]
[1746736431379,0.02463922,101830.0,101820.0,0.64646727]
[1746736431550,0.01481951,101830.0,101820.0,0.65628813]
[1746736431759,0.01481951,101830.0,101820.0,1.45439157]
[1746736431760,0.005,101830.0,101820.0,1.45439157]
[1746736432346,0.005,101830.0,101820.0,1.80200752]
[1746736432543,0.005,101830.0,101820.0,5.76179552]
[1746736432746,0.005,101830.0,101820.0,5.79347447]
[1746736432943,0.005,101830.0,101820.0,3.50154729]
[1746736433186,0.003,101830.0,101820.0,2.27639829]
[1746736433844,0.003,101830.0,101820.0,2.04973621]
[1746736434041,0.002,101830.0,101820.0,2.05573621]
[1746736434475,0.002,101830.0,101820.0,2.15693621]
[1746736434887,0.002,101830.0,101820.0,2.16193621]
[1746736435503,0.002,101830.0,101820.0,2.06073621]
[1746736435695,0.002,101830.0,101820.0,2.16157621]
[1746736437482,0.002,101830.0,101820.0,2.19105521]
[1746736438378,0.002,101830.0,101820.0,2.09021521]
[1746736438631,0.002,101830.0,101820.0,2.03305121]
[1746736439939,0.002,101830.0,101820.0,2.03265121]
[1746736440564,0.002,101830.0,101820.0,1.93293121]
[1746736440766,0.002,101830.0,101820.0,2.03245121]
[1746736442226,0.002,101830.0,101820.0,1.6937286]
[1746736442383,0.002,101830.0,101820.0,1.6887286]
[1746736442576,0.002,101830.0,101820.0,1.68272859]
[1746736442835,0.002,101830.0,101820.0,1.68872858]
[1746736442986,0.002,101830.0,101820.0,1.90902943]
[1746736443181,0.002,101830.0,101820.0,1.80056857]
[1746736443409,0.002,101830.0,101820.0,1.89928857]
[1746736443606,0.002,101830.0,101820.0,1.89328857]
[1746736443815,0.002,101830.0,101820.0,1.89728857]
[1746736443991,0.002,101830.0,101820.0,1.89728856]
[1746736444189,0.002,101850.0,101840.0,0.22584327]
[1746736444420,0.002,101850.0,101840.0,2.75356618]
[1746736444758,0.002,101850.0,101840.0,2.75356617]
[1746736444976,0.002,101850.0,101840.0,2.75356615]
[1746736445185,0.07311636,101860.0,101850.0,1.06499093]
[1746736445404,0.07311636,101860.0,101850.0,3.65155151]
[1746736445683,0.07311636,101860.0,101850.0,2.71147451]
[1746736445885,0.07311636,101860.0,101850.0,1.98886651]
[1746736446543,0.07311636,101860.0,101850.0,2.1903588]
[1746736446775,25.1020071,101880.0,101870.0,1.85525726]
[1746736446948,25.1020071,101880.0,101870.0,2.98294836]
[1746736447357,25.1020071,101880.0,101870.0,4.8493786]
[1746736447358,23.63800905,101880.0,101870.0,4.8493786]
[1746736447604,23.63130905,101880.0,101870.0,4.35123578]
[1746736447821,23.62639873,101880.0,101870.0,4.33303578]
[1746736448043,23.62149073,101880.0,101870.0,4.38303578]
[1746736448284,23.40512252,101880.0,101870.0,2.50107178]
[1746736448502,22.38871452,101880.0,101870.0,8.9216416]
[1746736448711,21.22344075,101880.0,101870.0,8.94779394]
[1746736448935,21.22344075,101880.0,101870.0,9.04563394]
[1746736448936,20.71114454,101880.0,101870.0,9.04563394]
[1746736449138,20.54972929,101880.0,101870.0,8.95391196]
[1746736449368,20.54482129,101880.0,101870.0,9.15701524]
[1746736449576,20.48457153,101880.0,101870.0,9.15701523]
[1746736449788,20.47966353,101880.0,101870.0,8.58952539]
[1746736449993,20.47966353,101880.0,101870.0,8.6596297]
[1746736450215,20.42321553,101880.0,101870.0,8.68332536]
[1746736450414,20.34845147,101880.0,101870.0,8.68932535]
[1746736450630,20.33787147,101880.0,101870.0,7.98258835]
[1746736450833,20.33787147,101880.0,101870.0,7.32991272]
[1746736451049,20.33787147,101880.0,101870.0,6.30916203]
[1746736451262,20.33787147,101880.0,101870.0,3.61135402]
[1746736451474,20.33787147,101880.0,101870.0,3.16647701]
[1746736451680,20.3377824,101880.0,101870.0,2.91794501]
[1746736451862,20.3377824,101880.0,101870.0,2.70930501]
[1746736452035,20.3377824,101880.0,101870.0,1.047348]
[1746736452243,20.3377824,101880.0,101870.0,1.393228]
[1746736452649,20.3377824,101880.0,101870.0,1.387228]
[1746736452824,20.3377824,101880.0,101870.0,1.392228]
[1746736453023,20.3377824,101880.0,101870.0,1.396228]
[1746736453248,20.3377824,101880.0,101870.0,1.33424999]
[1746736453882,20.29182255,101880.0,101870.0,2.12736066]
[1746736454091,20.29182255,101880.0,101870.0,1.72736066]
[1746736454456,20.29182255,101880.0,101870.0,0.93424998]
[1746736454639,20.29182255,101880.0,101870.0,1.33424998]
[1746736455012,20.32422255,101880.0,101870.0,1.33424998]
[1746736455877,20.29182255,101880.0,101870.0,1.81736065]
[1746736456081,20.29132255,101880.0,101870.0,1.81736064]
[1746736456282,20.29082255,101880.0,101870.0,1.81736064]
[1746736456485,20.29032255,101880.0,101870.0,1.81736064]
[1746736457124,20.28850197,101880.0,101870.0,1.34879082]
[1746736457526,20.23705987,101880.0,101870.0,1.80590367]
[1746736457864,20.20522242,101880.0,101870.0,1.80786366]
[1746736458074,20.20472242,101880.0,101870.0,2.20786366]
[1746736458289,20.18122242,101880.0,101870.0,2.12932063]
[1746736458447,20.18072242,101880.0,101870.0,2.12932063]
[1746736458648,20.18022242,101880.0,101870.0,2.12979483]
[1746736458875,20.18022242,101880.0,101870.0,2.16147378]
[1746736459050,20.16695702,101880.0,101870.0,2.03059483]
[1746736459256,20.16695702,101880.0,101870.0,1.66130501]
[1746736459458,20.16695702,101880.0,101870.0,2.03059483]
[1746736459665,20.16695702,101880.0,101870.0,1.33676416]
[1746736459863,20.18335702,101880.0,101870.0,1.33676415]
[1746736460160,20.19975702,101880.0,101870.0,1.33676415]
[1746736460366,20.15155322,101880.0,101870.0,1.33676415]
[1746736460552,20.15155322,101880.0,101870.0,0.99676415]
[1746736460806,20.15055322,101880.0,101870.0,0.88886415]
[1746736461012,20.15055322,101880.0,101870.0,0.88886414]
[1746736461205,20.15055322,101880.0,101870.0,1.19940714]
[1746736461608,20.15055322,101880.0,101870.0,1.09112714]
[1746736461814,20.15055322,101880.0,101870.0,1.09312714]
[1746736462172,20.15055322,101880.0,101870.0,1.09612714]
[1746736462760,20.15055322,101880.0,101870.0,0.69612714]
[1746736463154,20.15055322,101880.0,101870.0,1.09612714]
[1746736466356,20.15005322,101880.0,101870.0,1.09612713]
[1746736466979,20.14955322,101880.0,101870.0,1.09612713]
[1746736467211,20.14905322,101880.0,101870.0,1.09612713]
[1746736468204,20.14905322,101880.0,101870.0,1.19972713]
[1746736468431,20.14905322,101880.0,101870.0,1.51242713]
[1746736469072,20.14905322,101880.0,101870.0,1.51242712]
[1746736470639,20.14905322,101880.0,101870.0,1.51042712]
[1746736470847,20.14905322,101880.0,101870.0,1.50742711]
[1746736471017,20.14905322,101880.0,101870.0,1.50942711]
[1746736472062,20.14905322,101880.0,101870.0,1.09312711]
[1746736472267,20.10083808,101880.0,101870.0,1.09312711]
[1746736473423,20.06803808,101880.0,101870.0,2.96959693]
[1746736473539,20.06803808,101880.0,101870.0,2.98413777]
[1746736473950,20.06803808,101880.0,101870.0,2.99413777]
[1746736474172,20.06803808,101880.0,101870.0,2.99413776]
[1746736474370,20.03843808,101880.0,101870.0,2.99413776]
[1746736474595,19.99040808,101880.0,101870.0,3.35316775]
[1746736474762,19.92374816,101880.0,101870.0,3.35316775]
[1746736475086,19.89674816,101880.0,101870.0,2.95316775]
[1746736475286,19.89674816,101880.0,101870.0,2.98284669]
[1746736475487,19.8918384,101880.0,101870.0,3.38284669]
[1746736475682,19.8918384,101880.0,101870.0,3.38584669]
[1746736476072,19.8856184,101880.0,101870.0,3.44717098]
[1746736476278,19.8856184,101880.0,101870.0,3.44717097]
[1746736476501,19.8856184,101880.0,101870.0,4.07814097]
[1746736476706,19.8660284,101880.0,101870.0,3.48064202]
[1746736476879,19.8660284,101880.0,101870.0,3.46310116]
[1746736477081,19.8812284,101880.0,101870.0,2.15156134]
[1746736477311,19.8972284,101880.0,101870.0,2.15652134]
[1746736477498,19.8972284,101880.0,101870.0,2.15652133]
[1746736477697,19.8972284,101880.0,101870.0,2.16252133]
[1746736477898,19.8972284,101880.0,101870.0,2.06756133]
[1746736478107,19.8972284,101880.0,101870.0,1.61229133]
[1746736478420,19.8972284,101880.0,101870.0,0.91229133]
[1746736478626,19.8972284,101880.0,101870.0,0.90529133]
[1746736478948,19.8972284,101880.0,101870.0,1.18896704]
[1746736479159,19.8972284,101880.0,101870.0,1.19096704]
[1746736479760,19.8972284,101880.0,101870.0,1.09612703]
[1746736479980,19.8972284,101880.0,101870.0,1.19036703]
[1746736480542,19.907043,101880.0,101870.0,1.09612703]
[1746736480719,19.8972284,101880.0,101870.0,0.79032703]
[1746736480949,20.12298245,101880.0,101870.0,0.13035026]
[1746736481153,20.11316823,101880.0,101870.0,0.34631109]
[1746736481281,19.92667422,101880.0,101870.0,1.09612694]
[1746736481490,19.91685885,101880.0,101870.0,1.10594269]
[1746736481686,19.91685847,101880.0,101870.0,1.10594269]
[1746736481916,20.11316823,101880.0,101870.0,0.42968334]
[1746736482116,0.24768203,101860.0,101850.0,0.34912415]
[1746736482315,0.24768203,101860.0,101850.0,0.25342387]
[1746736482496,0.24768203,101860.0,101850.0,0.8694274]
[1746736482695,0.24768203,101860.0,101850.0,0.65342387]
[1746736483095,0.24768203,101860.0,101850.0,0.90928223]
[1746736483380,0.24768203,101860.0,101850.0,0.55946387]
[1746736483564,0.23786512,101860.0,101850.0,0.05879695]
[1746736483774,0.23786512,101860.0,101850.0,0.25516415]
[1746736483911,0.23786512,101860.0,101850.0,0.40179695]
[1746736484121,0.23786512,101860.0,101850.0,0.06179695]
[1746736484787,0.23786512,101860.0,101850.0,0.06279695]
[1746736485801,0.23786512,101860.0,101850.0,0.004]
[1746736486371,0.23786512,101860.0,101850.0,0.001]
[1746736486574,0.23818546,101850.0,101840.0,0.99742235]
[1746736486805,0.23818546,101850.0,101840.0,1.098562]
[1746736487359,0.25782131,101850.0,101840.0,1.098562]
[1746736487587,0.25782189,101850.0,101840.0,1.098562]
[1746736487775,0.26182189,101850.0,101840.0,1.098562]
[1746736489150,0.04581778,101850.0,101840.0,1.098562]
[1746736489385,0.036,101850.0,101840.0,1.57695046]
[1746736490069,0.05563545,101850.0,101840.0,1.10838064]
[1746736490544,0.06545342,101850.0,101840.0,1.10838064]
[1746736490769,0.04581758,101850.0,101840.0,1.52468064]
[1746736491030,0.05563545,101850.0,101840.0,1.52468064]
[1746736491888,0.06545352,101850.0,101840.0,1.514862]
[1746736492102,0.2618214,101850.0,101840.0,1.27920188]
[1746736492333,0.33054656,101850.0,101840.0,0.00247273]
[1746736492512,0.34508741,101850.0,101840.0,0.00247273]
[1746736492888,0.26654438,101850.0,101840.0,0.00247273]
[1746736493659,0.2384057,101840.0,101830.0,0.04566964]
[1746736493874,0.2384057,101840.0,101830.0,0.04614239]
[1746736494094,0.72151637,101840.0,101830.0,0.04614239]
[1746736494986,0.22076671,101830.0,101820.0,0.002]
[1746736495206,0.22076671,101830.0,101820.0,0.00247328]
[1746736495207,0.77043653,101830.0,101820.0,0.00247328]
[1746736495609,0.30186671,101830.0,101820.0,0.00247328]
[1746736495779,0.29204662,101830.0,101820.0,0.00247328]
[1746736496001,0.30186671,101830.0,101820.0,0.00247328]
[1746736496392,0.25186671,101830.0,101820.0,0.00247328]
[1746736496598,0.30186671,101830.0,101820.0,0.00247328]
[1746736496805,0.65742671,101830.0,101820.0,0.00247328]
[1746736497615,0.42384093,101830.0,101820.0,0.19889834]
[1746736497852,0.38966,101830.0,101820.0,0.66902784]
[1746736498019,0.0206,101830.0,101820.0,0.66902784]
[1746736498724,0.03041942,101830.0,101820.0,0.66902784]
[1746736498907,0.0206,101830.0,101820.0,0.66902784]
[1746736499120,0.0206,101830.0,101820.0,1.13759766]
[1746736499121,0.005,101830.0,101820.0,1.13759766]
[1746736499352,0.003,101830.0,101820.0,1.13759766]
[1746736499556,0.001,101830.0,101820.0,1.13759766]
[1746736499768,0.00981864,101840.0,101830.0,0.56586547]
[1746736500003,0.02641864,101840.0,101830.0,0.66653239]
[1746736500220,0.0166,101840.0,101830.0,0.66653239]
[1746736500433,0.05517188,101850.0,101840.0,0.56584327]
[1746736500434,0.02641768,101850.0,101840.0,0.56584327]
[1746736500644,0.02641768,101850.0,101840.0,0.66651019]
[1746736500850,0.03623555,101850.0,101840.0,0.66651019]
[1746736501468,0.04605352,101850.0,101840.0,0.66651029]
[1746736501674,0.05987168,101850.0,101840.0,0.67632893]
[1746736501878,0.01963951,101830.0,101820.0,0.31037997]
[1746736502085,0.0152,101840.0,101830.0,0.56586556]
[1746736502282,0.04465584,101840.0,101830.0,0.67635238]
[1746736502492,0.23520323,101850.0,101840.0,0.21602483]
[1746736502702,0.25480323,101850.0,101840.0,0.21602483]
[1746736502908,0.25080323,101850.0,101840.0,0.22584376]
[1746736503119,0.06325429,101850.0,101840.0,0.22584386]
[1746736503322,0.05343545,101850.0,101840.0,0.24548143]
[1746736503530,0.2596214,101850.0,101840.0,0.19638648]
[1746736503733,0.23840561,101840.0,101830.0,1.04789268]
[1746736503938,0.23840561,101840.0,101830.0,1.06753286]
[1746736504142,0.24822445,101840.0,101830.0,1.07635266]
[1746736504352,0.25804377,101840.0,101830.0,1.06653286]
[1746736504560,0.06165729,101840.0,101830.0,1.07635266]
[1746736504713,0.06165729,101840.0,101830.0,1.06653286]
[1746736504912,0.06165729,101840.0,101830.0,1.05671296]
[1746736505139,0.06165729,101840.0,101830.0,1.06653276]
[1746736505544,0.05183797,101840.0,101830.0,1.06653276]
[1746736505719,0.05183797,101840.0,101830.0,1.07635266]
[1746736505922,0.05183797,101840.0,101830.0,1.06653286]
[1746736506122,0.06165652,101840.0,101830.0,1.08617227]
[1746736506327,0.20622586,101830.0,101820.0,0.75877328]
[1746736506530,0.24704585,101830.0,101820.0,0.19889834]
[1746736506731,0.23722586,101830.0,101820.0,0.40247328]
[1746736506943,0.23722586,101830.0,101820.0,0.00247328]
[1746736507172,0.25176671,101830.0,101820.0,0.00247328]
[1746736507554,0.94954648,101830.0,101820.0,0.00247328]
[1746736507748,0.94954648,101830.0,101800.0,0.002]
[1746736507749,0.2481881,101810.0,101800.0,0.002]
[1746736507977,0.05174307,101810.0,101800.0,0.20828663]
[1746736508354,0.07138702,101810.0,101800.0,0.23750313]
[1746736508570,0.07138702,101810.0,101800.0,0.22768034]
[1746736508981,0.0615649,101810.0,101800.0,0.24732593]
[1746736509210,0.2651851,101810.0,101800.0,0.002]
[1746736509445,0.88196607,101810.0,101800.0,0.002]
[1746736509678,0.88196607,101810.0,101800.0,0.003]
[1746736509679,0.76707625,101810.0,101800.0,0.003]
[1746736510405,0.76707625,101810.0,101800.0,0.002]
[1746736512244,0.76907625,101810.0,101800.0,0.002]
[1746736513023,0.86974317,101810.0,101800.0,0.002]
[1746736513417,0.76907625,101810.0,101800.0,0.002]
[1746736513837,0.76907625,101810.0,101780.0,0.002]
[1746736513838,0.26227141,101790.0,101780.0,0.002]
[1746736515080,0.26227141,101790.0,101780.0,0.00204701]
[1746736515288,0.26227141,101790.0,101780.0,0.00504701]
[1746736515527,0.31227141,101790.0,101780.0,0.00504701]
[1746736516354,0.31227141,101790.0,101780.0,0.00604701]
[1746736516554,0.31227141,101790.0,101780.0,0.00704701]
[1746736516756,0.31227141,101790.0,101780.0,0.00304701]
[1746736516971,0.47888019,101790.0,101780.0,0.00504701]
[1746736517159,0.94745001,101790.0,101780.0,0.00504701]
[1746736517359,1.29745001,101790.0,101780.0,0.00504701]
[1746736517558,0.75293833,101790.0,101780.0,0.00504701]
[1746736517977,0.75293833,101790.0,101780.0,0.00404701]
[1746736518535,0.41593833,101790.0,101780.0,0.00404701]
[1746736518734,0.41593833,101790.0,101780.0,0.00204701]
[1746736518909,0.41693833,101790.0,101780.0,0.00204701]
[1746736519475,0.77073833,101790.0,101780.0,0.00204701]
[1746736520731,1.24930815,101790.0,101780.0,0.00204701]
[1746736520924,1.58930815,101790.0,101780.0,0.00204701]
[1746736521464,0.7814837,101770.0,101760.0,0.002]
[1746736521645,1.23215062,101770.0,101760.0,0.00204717]
[1746736521875,1.11158398,101770.0,101760.0,0.00204717]
[1746736522104,1.17475239,101770.0,101760.0,0.00204717]
[1746736522508,0.66095955,101750.0,101740.0,0.002]
[1746736522710,0.66095955,101750.0,101740.0,0.00213973]
[1746736522711,0.76162647,101750.0,101740.0,0.00213973]
[1746736523117,0.41362329,101750.0,101740.0,0.00213973]
[1746736523314,0.76162647,101750.0,101740.0,0.00213973]
[1746736523869,0.41362329,101750.0,101740.0,0.00213973]
[1746736524124,0.85429021,101750.0,101740.0,0.00213973]
[1746736524290,0.79284964,101730.0,101720.0,0.002]
[1746736524521,1.24739656,101730.0,101720.0,0.00213981]
[1746736524927,1.63739656,101730.0,101720.0,0.00213981]
[1746736525118,0.32354141,101710.0,101700.0,0.16171924]
[1746736525371,0.32354141,101710.0,101700.0,0.16185974]
[1746736525372,0.89405909,101710.0,101700.0,0.16185974]
[1746736525569,0.26358395,101690.0,101680.0,0.50239495]
[1746736525960,0.26358395,101690.0,101680.0,0.50253597]
[1746736526182,0.26358395,101690.0,101680.0,0.10253597]
[1746736526406,0.01966635,101690.0,101680.0,0.32873462]
[1746736526618,0.03933348,101690.0,101680.0,0.93725613]
[1746736526818,0.02950045,101690.0,101680.0,0.94225623]
[1746736526969,0.02950045,101690.0,101680.0,0.9619248]
[1746736527154,0.23601042,101690.0,101680.0,0.95209061]
[1746736527351,0.03933425,101690.0,101680.0,0.97175899]
[1746736527957,0.001,101690.0,101680.0,0.97675899]
[1746736528183,0.22717671,101690.0,101680.0,0.94225623]
[1746736528509,0.21734339,101690.0,101680.0,0.85342389]
[1746736528639,0.02066713,101690.0,101680.0,0.85342389]
[1746736528840,0.02312572,101690.0,101680.0,0.86325827]
[1746736529040,0.22963569,101690.0,101680.0,0.83375483]
[1746736529259,0.2271771,101690.0,101680.0,0.747]
[1746736529459,0.26418453,101690.0,101680.0,0.007]
[1746736529874,0.26418453,101690.0,101670.0,0.28922048]
[1746736529875,0.01966896,101680.0,101670.0,0.46564868]
[1746736530077,0.22865783,101680.0,101670.0,0.75030785]
[1746736530277,0.23226476,101680.0,101670.0,0.74047211]
[1746736530505,0.24866476,101680.0,101670.0,0.74047211]
[1746736530715,0.05196925,101680.0,101670.0,0.93718697]
[1746736530923,0.02950334,101680.0,101670.0,0.96669331]
[1746736531125,0.03933811,101680.0,101670.0,0.97269341]
[1746736531340,0.28182162,101700.0,101680.0,0.21636418]
[1746736531535,0.02949967,101690.0,101680.0,0.23603285]
[1746736531747,0.01966625,101690.0,101680.0,0.23603285]
[1746736531948,0.03933338,101690.0,101680.0,0.21636457]
[1746736532197,0.04981748,101690.0,101680.0,0.22619886]
[1746736532417,0.03998377,101690.0,101680.0,0.24003305]
[1746736532621,0.268461,101690.0,101680.0,0.17036476]
[1746736532930,0.268461,101690.0,101680.0,0.2018682]
[1746736533127,0.236661,101690.0,101680.0,0.2018682]
[1746736533469,0.236661,101690.0,101680.0,0.19203382]
[1746736533651,0.236661,101690.0,101680.0,0.18803382]
[1746736533863,0.03015103,101690.0,101680.0,0.1978682]
[1746736534016,0.03998464,101690.0,101680.0,0.1988682]
[1746736534227,0.02031723,101690.0,101680.0,0.20870229]
[1746736534429,0.02031723,101690.0,101680.0,0.20870249]
[1746736534430,0.03998416,101690.0,101680.0,0.20870249]
[1746736534617,0.02031723,101690.0,101680.0,0.20870181]
[1746736534812,0.03998367,101690.0,101680.0,0.20870181]
[1746736535040,0.03015016,101690.0,101680.0,0.20870181]
[1746736535240,0.26088597,101690.0,101680.0,0.19969551]
[1746736535436,0.27296825,101690.0,101680.0,0.19969551]
[1746736535935,0.27296825,101690.0,101680.0,0.003]
[1746736541422,0.0104841,101690.0,101680.0,1.03904941]